[Event "Early-Titled-Tuesday-Blitz-March-26-2024"]
[Site "Chess.com"]
[Date "2024.03.26"]
[Round "7"]
[White "MaxLeto"]
[Black "ogpin"]
[Result "1-0"]
[WhiteElo "2490"]
[BlackElo "2272"]
[TimeControl "180+1"]
[EndTime "9:16:00 PDT"]
[Termination "MaxLeto won on time"]

1. g4 {[%clk 0:03:00.9]} 1... g6 {[%clk 0:02:55]} 2. Bg2 {[%clk 0:03:01.2]} 2...
Bg7 {[%clk 0:02:55.4]} 3. d4 {[%clk 0:03:01.7]} 3... a5 {[%clk 0:02:55.4]} 4. h4
{[%clk 0:03:01.9]} 4... d6 {[%clk 0:02:54.2]} 5. g5 {[%clk 0:03:01.6]} 5... Nc6
{[%clk 0:02:49.8]} 6. c3 {[%clk 0:03:00]} 6... e5 {[%clk 0:02:49.2]} 7. Nf3
{[%clk 0:02:56.3]} 7... Bg4 {[%clk 0:02:38.6]} 8. d5 {[%clk 0:02:49.3]} 8...
Nce7 {[%clk 0:02:38.5]} 9. c4 {[%clk 0:02:49.8]} 9... h6 {[%clk 0:02:33.1]} 10.
Nc3 {[%clk 0:02:48.4]} 10... Nf5 {[%clk 0:02:30]} 11. Ne4 {[%clk 0:02:11.6]}
11... f6 {[%clk 0:02:07]} 12. Qd3 {[%clk 0:01:52.7]} 12... hxg5 {[%clk
0:01:52.4]} 13. hxg5 {[%clk 0:01:51.9]} 13... Rxh1+ {[%clk 0:01:53.3]} 14. Bxh1
{[%clk 0:01:51.8]} 14... Qe7 {[%clk 0:01:21.1]} 15. Bd2 {[%clk 0:01:49.2]} 15...
Bxf3 {[%clk 0:01:10.4]} 16. Bxf3 {[%clk 0:01:47.6]} 16... Nd4 {[%clk 0:01:10.8]}
17. gxf6 {[%clk 0:01:41.6]} 17... Nxf6 {[%clk 0:01:11.7]} 18. Nxf6+ {[%clk
0:01:33.7]} 18... Qxf6 {[%clk 0:01:10.3]} 19. Bg4 {[%clk 0:01:34.2]} 19... Kf7
{[%clk 0:00:55.3]} 20. O-O-O {[%clk 0:01:21.5]} 20... a4 {[%clk 0:00:55.6]} 21.
e3 {[%clk 0:01:02.1]} 21... Nf3 {[%clk 0:00:33.7]} 22. Bc3 {[%clk 0:00:49.8]}
22... a3 {[%clk 0:00:32.7]} 23. b3 {[%clk 0:00:50.4]} 23... Ng5 {[%clk
0:00:24.1]} 24. f4 {[%clk 0:00:45.6]} 24... Nh7 {[%clk 0:00:16.1]} 25. Rf1
{[%clk 0:00:42.3]} 25... e4 {[%clk 0:00:14.8]} 26. Be6+ {[%clk 0:00:41.1]} 26...
Kf8 {[%clk 0:00:13.2]} 27. Bxf6 {[%clk 0:00:38]} 27... exd3 {[%clk 0:00:13.6]}
28. Bxg7+ {[%clk 0:00:34.6]} 28... Kxg7 {[%clk 0:00:14.5]} 29. Kd2 {[%clk
0:00:33.5]} 29... Nf6 {[%clk 0:00:13.2]} 30. Kxd3 {[%clk 0:00:19.9]} 30... Rh8
{[%clk 0:00:13.3]} 31. Rf2 {[%clk 0:00:20.3]} 31... Rh1 {[%clk 0:00:13.2]} 32.
Rg2 {[%clk 0:00:20.6]} 32... Rb1 {[%clk 0:00:13.1]} 33. f5 {[%clk 0:00:19]}
33... Ne8 {[%clk 0:00:05.2]} 34. Rxg6+ {[%clk 0:00:18.6]} 34... Kh7 {[%clk
0:00:04.6]} 35. Rg2 {[%clk 0:00:19.4]} 35... Rb2 {[%clk 0:00:04.5]} 36. Rxb2
{[%clk 0:00:18.5]} 36... axb2 {[%clk 0:00:05.2]} 37. Kc2 {[%clk 0:00:19]} 37...
Kg7 {[%clk 0:00:05.7]} 38. Kxb2 {[%clk 0:00:19.2]} 38... Kf6 {[%clk 0:00:06.2]}
39. Kc3 {[%clk 0:00:19.9]} 39... Ke5 {[%clk 0:00:06.5]} 40. Kd3 {[%clk
0:00:20.3]} 40... Nf6 {[%clk 0:00:07]} 41. b4 {[%clk 0:00:20.1]} 41... b6 {[%clk
0:00:06.4]} 42. a4 {[%clk 0:00:20.3]} 42... Ne4 {[%clk 0:00:06.7]} 43. a5 {[%clk
0:00:20.7]} 43... bxa5 {[%clk 0:00:05.1]} 44. bxa5 {[%clk 0:00:20.7]} 44... Nc5+
{[%clk 0:00:06]} 45. Kc3 {[%clk 0:00:20.3]} 45... Na6 {[%clk 0:00:04.7]} 46. Kb3
{[%clk 0:00:19.2]} 46... c5 {[%clk 0:00:04.8]} 47. Ka4 {[%clk 0:00:19]} 47...
Nc7 {[%clk 0:00:03.8]} 48. Bd7 {[%clk 0:00:13.8]} 48... Kf6 {[%clk 0:00:03.3]}
49. Bc8 {[%clk 0:00:11.7]} 49... Ke5 {[%clk 0:00:03.6]} 50. a6 {[%clk
0:00:12.2]} 1-0

[Event "Early-Titled-Tuesday-Blitz-March-26-2024"]
[Site "Chess.com"]
[Date "2024.03.26"]
[Round "7"]
[White "NelsonLinda"]
[Black "EternalNight8"]
[Result "1-0"]
[WhiteElo "2655"]
[BlackElo "2471"]
[TimeControl "180+1"]
[EndTime "9:16:01 PDT"]
[Termination "NelsonLinda won by resignation"]

1. d4 {[%clk 0:03:00.9]} 1... Nf6 {[%clk 0:02:59.8]} 2. Nf3 {[%clk 0:03:01.4]}
2... e6 {[%clk 0:03:00.2]} 3. Bg5 {[%clk 0:03:01.7]} 3... Be7 {[%clk 0:02:51.9]}
4. Nbd2 {[%clk 0:03:00.6]} 4... d5 {[%clk 0:02:51.5]} 5. e3 {[%clk 0:02:59.8]}
5... h6 {[%clk 0:02:51.4]} 6. Bh4 {[%clk 0:02:55.6]} 6... c5 {[%clk 0:02:50]} 7.
c3 {[%clk 0:02:52.5]} 7... Nc6 {[%clk 0:02:47.6]} 8. Bd3 {[%clk 0:02:52.5]} 8...
cxd4 {[%clk 0:02:38.2]} 9. exd4 {[%clk 0:02:51.8]} 9... O-O {[%clk 0:02:37.3]}
10. O-O {[%clk 0:02:51.8]} 10... Nh5 {[%clk 0:02:19.2]} 11. Bg3 {[%clk
0:02:47.1]} 11... Nxg3 {[%clk 0:02:17.9]} 12. hxg3 {[%clk 0:02:48]} 12... Bd6
{[%clk 0:02:12.5]} 13. Re1 {[%clk 0:02:47.1]} 13... Qf6 {[%clk 0:02:06.3]} 14.
Nf1 {[%clk 0:02:46.4]} 14... g6 {[%clk 0:02:03.2]} 15. Ne3 {[%clk 0:02:43.7]}
15... h5 {[%clk 0:02:01.4]} 16. b4 {[%clk 0:02:43.6]} 16... a6 {[%clk
0:02:00.8]} 17. a4 {[%clk 0:02:43.5]} 17... b6 {[%clk 0:01:58.2]} 18. Qb3 {[%clk
0:02:38.4]} 18... Bb7 {[%clk 0:01:44.7]} 19. Re2 {[%clk 0:02:30.6]} 19... Ne7
{[%clk 0:01:44.5]} 20. Rae1 {[%clk 0:02:09.3]} 20... Nf5 {[%clk 0:01:43.3]} 21.
Nxf5 {[%clk 0:02:07.3]} 21... gxf5 {[%clk 0:01:44.2]} 22. Ne5 {[%clk 0:01:40]}
22... Rfd8 {[%clk 0:01:37.4]} 23. Qb1 {[%clk 0:01:32.4]} 23... Kg7 {[%clk
0:01:35.8]} 24. Qc1 {[%clk 0:01:23.4]} 24... Rac8 {[%clk 0:01:25.8]} 25. Rc2
{[%clk 0:00:44.1]} 25... h4 {[%clk 0:01:16.9]} 26. Qf4 {[%clk 0:00:41]} 26...
Rh8 {[%clk 0:01:10.3]} 27. Re3 {[%clk 0:00:20.7]} 27... h3 {[%clk 0:01:02.2]}
28. g4 {[%clk 0:00:20.1]} 28... h2+ {[%clk 0:00:32.9]} 29. Kh1 {[%clk
0:00:19.1]} 29... Rh4 {[%clk 0:00:33.3]} 30. Rg3 {[%clk 0:00:12.7]} 30... Kh8
{[%clk 0:00:31.1]} 31. Nxf7+ {[%clk 0:00:06.3]} 31... Qxf7 {[%clk 0:00:30.2]}
32. Qxd6 {[%clk 0:00:06.9]} 32... fxg4 {[%clk 0:00:22.4]} 33. Qe5+ {[%clk
0:00:07.2]} 33... Qg7 {[%clk 0:00:22.5]} 34. Qxe6 {[%clk 0:00:04.9]} 34... Rf8
{[%clk 0:00:22.1]} 35. Re2 {[%clk 0:00:04.2]} 35... Qg5 {[%clk 0:00:15.7]} 36.
Qe5+ {[%clk 0:00:03.3]} 36... Qxe5 {[%clk 0:00:15.6]} 37. Rxe5 {[%clk
0:00:04.2]} 37... Rxf2 {[%clk 0:00:15.7]} 38. Re8+ {[%clk 0:00:03.2]} 38... Kg7
{[%clk 0:00:16.1]} 39. Re7+ {[%clk 0:00:03.1]} 39... Rf7 {[%clk 0:00:16]} 40.
Rxf7+ {[%clk 0:00:03]} 40... Kxf7 {[%clk 0:00:16.9]} 41. Bf5 {[%clk 0:00:03]}
41... Kf6 {[%clk 0:00:13.6]} 42. Bxg4 {[%clk 0:00:03]} 42... a5 {[%clk 0:00:13]}
43. bxa5 {[%clk 0:00:02.5]} 43... bxa5 {[%clk 0:00:13]} 44. Bd7 {[%clk
0:00:02.7]} 44... Ba6 {[%clk 0:00:13.1]} 45. Rh3 {[%clk 0:00:02.2]} 45... Rxh3
{[%clk 0:00:12.4]} 46. gxh3 {[%clk 0:00:03.1]} 46... Kg5 {[%clk 0:00:11.7]} 47.
Kxh2 {[%clk 0:00:03.5]} 47... Bc4 {[%clk 0:00:11.5]} 48. Kg3 {[%clk 0:00:03.8]}
48... Bb3 {[%clk 0:00:11.2]} 49. h4+ {[%clk 0:00:04.2]} 49... Kh6 {[%clk
0:00:11.5]} 50. Be8 {[%clk 0:00:03.4]} 50... Bc2 {[%clk 0:00:10.8]} 51. Kf4
{[%clk 0:00:03.8]} 51... Bb3 {[%clk 0:00:10.9]} 52. Ke5 {[%clk 0:00:04.3]} 52...
Bc4 {[%clk 0:00:11.3]} 53. Kd6 {[%clk 0:00:03.2]} 53... Bb3 {[%clk 0:00:10.3]}
54. Kc5 {[%clk 0:00:03.7]} 54... Bc4 {[%clk 0:00:10.4]} 55. Kb6 {[%clk
0:00:04.3]} 1-0

[Event "Early-Titled-Tuesday-Blitz-March-26-2024"]
[Site "Chess.com"]
[Date "2024.03.26"]
[Round "7"]
[White "DreamsAreFake"]
[Black "temus_galaktionov"]
[Result "1/2-1/2"]
[WhiteElo "2761"]
[BlackElo "2887"]
[TimeControl "180+1"]
[EndTime "9:16:02 PDT"]
[Termination "Game drawn by repetition"]

1. Nf3 {[%clk 0:03:00.9]} 1... c6 {[%clk 0:03:00.9]} 2. g3 {[%clk 0:02:57.1]}
2... g6 {[%clk 0:03:01.8]} 3. Bg2 {[%clk 0:02:57.3]} 3... d6 {[%clk 0:02:58.5]}
4. d4 {[%clk 0:02:56.4]} 4... Bg7 {[%clk 0:02:56.5]} 5. O-O {[%clk 0:02:56.9]}
5... Nd7 {[%clk 0:02:55.3]} 6. c3 {[%clk 0:02:45.8]} 6... Ngf6 {[%clk
0:02:54.3]} 7. Nbd2 {[%clk 0:02:45.4]} 7... O-O {[%clk 0:02:53.8]} 8. e4 {[%clk
0:02:46.1]} 8... e5 {[%clk 0:02:53.6]} 9. dxe5 {[%clk 0:02:46.7]} 9... dxe5
{[%clk 0:02:54.5]} 10. Qe2 {[%clk 0:02:47.2]} 10... Qc7 {[%clk 0:02:51.6]} 11.
a4 {[%clk 0:02:41.1]} 11... b6 {[%clk 0:02:51.5]} 12. b3 {[%clk 0:02:39.7]}
12... Nc5 {[%clk 0:02:48.1]} 13. Ba3 {[%clk 0:02:38.2]} 13... Ba6 {[%clk
0:02:48]} 14. c4 {[%clk 0:02:38.5]} 14... Nfd7 {[%clk 0:02:47.5]} 15. b4 {[%clk
0:02:26.6]} 15... Nxa4 {[%clk 0:02:20.8]} 16. b5 {[%clk 0:02:14.5]} 16... cxb5
{[%clk 0:02:21.7]} 17. Bxf8 {[%clk 0:02:13.9]} 17... Bxf8 {[%clk 0:02:21.3]} 18.
Rfc1 {[%clk 0:02:03.2]} 18... Rc8 {[%clk 0:01:52.7]} 19. Nb3 {[%clk 0:01:51.8]}
19... Bb4 {[%clk 0:01:37.7]} 20. Bh3 {[%clk 0:01:30.3]} 20... Nc3 {[%clk
0:01:28]} 21. Qd3 {[%clk 0:01:19.8]} 21... Rd8 {[%clk 0:01:16.2]} 22. Bxd7
{[%clk 0:00:32.8]} 22... Rxd7 {[%clk 0:00:55.5]} 23. Qe3 {[%clk 0:00:33]} 23...
bxc4 {[%clk 0:00:55.8]} 24. Nbd2 {[%clk 0:00:17.7]} 24... Bb5 {[%clk 0:00:50.3]}
25. Rxc3 {[%clk 0:00:16.6]} 25... Bxc3 {[%clk 0:00:46.1]} 26. Qxc3 {[%clk
0:00:17.5]} 26... f6 {[%clk 0:00:43]} 27. Qb4 {[%clk 0:00:13.7]} 27... a6 {[%clk
0:00:38.5]} 28. Rc1 {[%clk 0:00:14.2]} 28... Qc6 {[%clk 0:00:24.7]} 29. Nxc4
{[%clk 0:00:09]} 29... Qxe4 {[%clk 0:00:22.4]} 30. Nfd2 {[%clk 0:00:09.5]} 30...
Rxd2 {[%clk 0:00:19.4]} 31. Qxd2 {[%clk 0:00:09.9]} 31... Bxc4 {[%clk
0:00:18.9]} 32. Qd8+ {[%clk 0:00:10.4]} 32... Kg7 {[%clk 0:00:17.9]} 33. Qxb6
{[%clk 0:00:09.9]} 33... Bd5 {[%clk 0:00:17.2]} 34. Rc7+ {[%clk 0:00:08.9]}
34... Kh6 {[%clk 0:00:15.5]} 35. Qe3+ {[%clk 0:00:08.2]} 35... Qxe3 {[%clk
0:00:15.1]} 36. fxe3 {[%clk 0:00:09.1]} 36... Kg5 {[%clk 0:00:12]} 37. Rxh7
{[%clk 0:00:07.5]} 37... Bc4 {[%clk 0:00:08.8]} 38. Ra7 {[%clk 0:00:06.1]} 38...
e4 {[%clk 0:00:08.8]} 39. Kf2 {[%clk 0:00:05.5]} 39... Kg4 {[%clk 0:00:08.7]}
40. Rb7 {[%clk 0:00:05.4]} 40... f5 {[%clk 0:00:08.2]} 41. h4 {[%clk 0:00:05.2]}
41... Bb5 {[%clk 0:00:04.1]} 42. Rb6 {[%clk 0:00:05.3]} 42... Kh5 {[%clk
0:00:04.1]} 43. Re6 {[%clk 0:00:03.5]} 43... g5 {[%clk 0:00:04]} 44. Re5 {[%clk
0:00:02.8]} 44... Kg4 {[%clk 0:00:03.7]} 45. hxg5 {[%clk 0:00:01.4]} 45... Kxg5
{[%clk 0:00:04.6]} 46. Re7 {[%clk 0:00:02]} 46... a5 {[%clk 0:00:04.2]} 47. Ra7
{[%clk 0:00:02.4]} 47... a4 {[%clk 0:00:04.6]} 48. Ra5 {[%clk 0:00:03.1]} 48...
Bc6 {[%clk 0:00:04.6]} 49. Ra6 {[%clk 0:00:03.5]} 49... Bb5 {[%clk 0:00:04.6]}
50. Ra5 {[%clk 0:00:04.2]} 50... Bc6 {[%clk 0:00:05.1]} 51. Rc5 {[%clk
0:00:04.6]} 51... Bd7 {[%clk 0:00:05.3]} 52. Ra5 {[%clk 0:00:05.3]} 52... Bc6
{[%clk 0:00:05.6]} 1/2-1/2

[Event "Early-Titled-Tuesday-Blitz-March-26-2024"]
[Site "Chess.com"]
[Date "2024.03.26"]
[Round "7"]
[White "noblerone"]
[Black "HanSchut"]
[Result "1/2-1/2"]
[WhiteElo "2555"]
[BlackElo "2291"]
[TimeControl "180+1"]
[EndTime "9:16:04 PDT"]
[Termination "Game drawn by repetition"]

1. d4 {[%clk 0:02:52.1]} 1... Nf6 {[%clk 0:02:59.5]} 2. Nf3 {[%clk 0:02:51.3]}
2... g6 {[%clk 0:02:59.7]} 3. c4 {[%clk 0:02:44.2]} 3... Bg7 {[%clk 0:02:58.7]}
4. Nc3 {[%clk 0:02:44.6]} 4... d5 {[%clk 0:02:51.1]} 5. Bg5 {[%clk 0:02:44.2]}
5... Ne4 {[%clk 0:02:50.9]} 6. Bf4 {[%clk 0:02:44.5]} 6... Nxc3 {[%clk
0:02:50.2]} 7. bxc3 {[%clk 0:02:45.4]} 7... dxc4 {[%clk 0:02:50.7]} 8. Qa4+
{[%clk 0:02:34.1]} 8... c6 {[%clk 0:02:48.7]} 9. Qxc4 {[%clk 0:02:32.9]} 9...
O-O {[%clk 0:02:39.9]} 10. e3 {[%clk 0:02:28.8]} 10... Nd7 {[%clk 0:02:36]} 11.
Be2 {[%clk 0:02:22.9]} 11... Nb6 {[%clk 0:02:34.8]} 12. Qb3 {[%clk 0:02:19.4]}
12... Be6 {[%clk 0:02:12.9]} 13. Qc2 {[%clk 0:01:54.3]} 13... Bc4 {[%clk
0:02:01.7]} 14. O-O {[%clk 0:01:49.6]} 14... Qd7 {[%clk 0:01:56.7]} 15. Ne5
{[%clk 0:01:43.9]} 15... Bxe5 {[%clk 0:01:38.4]} 16. Bxe5 {[%clk 0:01:44.8]}
16... Bxe2 {[%clk 0:01:37.4]} 17. Qxe2 {[%clk 0:01:45.6]} 17... Qd5 {[%clk
0:01:37.6]} 18. Bc7 {[%clk 0:01:42.2]} 18... Qc4 {[%clk 0:01:24.8]} 19. Qb2
{[%clk 0:01:29.5]} 19... Nd5 {[%clk 0:01:14.1]} 20. Qxb7 {[%clk 0:01:19.6]}
20... Nxc3 {[%clk 0:01:10.2]} 21. Bg3 {[%clk 0:01:05.9]} 21... e6 {[%clk
0:00:58.5]} 22. a4 {[%clk 0:00:49.8]} 22... c5 {[%clk 0:00:58.7]} 23. dxc5
{[%clk 0:00:40.4]} 23... Qxc5 {[%clk 0:00:58.8]} 24. a5 {[%clk 0:00:32.3]} 24...
Ne2+ {[%clk 0:00:54.9]} 25. Kh1 {[%clk 0:00:32]} 25... Nxg3+ {[%clk 0:00:55.8]}
26. hxg3 {[%clk 0:00:32.5]} 26... Rfb8 {[%clk 0:00:55.8]} 27. Qf3 {[%clk
0:00:28.3]} 27... Qd5 {[%clk 0:00:50.8]} 28. Qxd5 {[%clk 0:00:27.8]} 28... exd5
{[%clk 0:00:51.7]} 29. Rfd1 {[%clk 0:00:28.4]} 29... Rb5 {[%clk 0:00:52.1]} 30.
a6 {[%clk 0:00:25.8]} 30... Rc8 {[%clk 0:00:47.7]} 31. Rd2 {[%clk 0:00:18.5]}
31... Rc6 {[%clk 0:00:46.7]} 32. Kg1 {[%clk 0:00:14.5]} 32... Rbb6 {[%clk
0:00:43.5]} 33. Rda2 {[%clk 0:00:14.8]} 33... Rd6 {[%clk 0:00:40.5]} 34. g4
{[%clk 0:00:14.1]} 34... d4 {[%clk 0:00:41]} 35. e4 {[%clk 0:00:06.1]} 35... f6
{[%clk 0:00:39.7]} 36. f3 {[%clk 0:00:05]} 36... Kf7 {[%clk 0:00:40.1]} 37. Rd2
{[%clk 0:00:05.2]} 37... Ke6 {[%clk 0:00:39.3]} 38. f4 {[%clk 0:00:04.8]} 38...
g5 {[%clk 0:00:39.4]} 39. g3 {[%clk 0:00:04.3]} 39... Rxa6 {[%clk 0:00:24.3]}
40. Rxa6 {[%clk 0:00:03.9]} 40... Rxa6 {[%clk 0:00:25.2]} 41. Rxd4 {[%clk
0:00:04.4]} 41... Ra2 {[%clk 0:00:24.9]} 42. Rb4 {[%clk 0:00:03.3]} 42... a5
{[%clk 0:00:22.9]} 43. Rb6+ {[%clk 0:00:02.8]} 43... Kd7 {[%clk 0:00:20.2]} 44.
Rb7+ {[%clk 0:00:02.7]} 44... Ke6 {[%clk 0:00:20.7]} 45. Rb6+ {[%clk 0:00:03]}
45... Kd7 {[%clk 0:00:20.7]} 46. Rb7+ {[%clk 0:00:03.4]} 46... Ke6 {[%clk
0:00:21.4]} 47. Rxh7 {[%clk 0:00:03.9]} 47... gxf4 {[%clk 0:00:18.8]} 48. gxf4
{[%clk 0:00:04.8]} 48... Ra4 {[%clk 0:00:18.9]} 49. Ra7 {[%clk 0:00:05.2]} 49...
Rxe4 {[%clk 0:00:18.4]} 50. Ra6+ {[%clk 0:00:05.2]} 50... Kf7 {[%clk 0:00:18.8]}
51. Rxa5 {[%clk 0:00:05.2]} 51... Rxf4 {[%clk 0:00:19.4]} 52. Ra7+ {[%clk
0:00:05.3]} 52... Kg6 {[%clk 0:00:19.7]} 53. Kg2 {[%clk 0:00:05.8]} 53... Rxg4+
{[%clk 0:00:19.7]} 54. Kf3 {[%clk 0:00:06.3]} 54... Rg5 {[%clk 0:00:20.3]} 55.
Ra8 {[%clk 0:00:06.7]} 55... Rf5+ {[%clk 0:00:20.5]} 56. Kg4 {[%clk 0:00:06.6]}
56... Rg5+ {[%clk 0:00:20.8]} 57. Kf4 {[%clk 0:00:07.3]} 57... Kf7 {[%clk
0:00:20.5]} 58. Ra7+ {[%clk 0:00:07.3]} 58... Kg6 {[%clk 0:00:21.4]} 59. Ra8
{[%clk 0:00:07.6]} 59... Rf5+ {[%clk 0:00:22.3]} 60. Kg4 {[%clk 0:00:07.3]}
60... Ra5 {[%clk 0:00:21.3]} 61. Rg8+ {[%clk 0:00:07.2]} 61... Kf7 {[%clk
0:00:21.8]} 62. Rb8 {[%clk 0:00:08.1]} 62... Ra6 {[%clk 0:00:20.8]} 63. Kf5
{[%clk 0:00:07.9]} 63... Ra5+ {[%clk 0:00:20.8]} 64. Kf4 {[%clk 0:00:08.4]}
64... Ke6 {[%clk 0:00:20.4]} 65. Rb6+ {[%clk 0:00:08]} 65... Kf7 {[%clk
0:00:20.5]} 66. Rb8 {[%clk 0:00:08.2]} 66... Ra4+ {[%clk 0:00:20.2]} 67. Kf5
{[%clk 0:00:08.3]} 67... Ra5+ {[%clk 0:00:20.7]} 68. Kf4 {[%clk 0:00:08.7]}
1/2-1/2

[Event "Early-Titled-Tuesday-Blitz-March-26-2024"]
[Site "Chess.com"]
[Date "2024.03.26"]
[Round "7"]
[White "Bilan_Danila"]
[Black "Masterbeaterr"]
[Result "1/2-1/2"]
[WhiteElo "2636"]
[BlackElo "2446"]
[TimeControl "180+1"]
[EndTime "9:16:04 PDT"]
[Termination "Game drawn by repetition"]

1. d4 {[%clk 0:02:58.4]} 1... d5 {[%clk 0:02:59.7]} 2. Nf3 {[%clk 0:02:57.7]}
2... Nf6 {[%clk 0:02:59.2]} 3. c4 {[%clk 0:02:57.9]} 3... dxc4 {[%clk
0:03:00.1]} 4. e3 {[%clk 0:02:56.4]} 4... e6 {[%clk 0:03:00.5]} 5. Bxc4 {[%clk
0:02:56.5]} 5... c5 {[%clk 0:02:59.6]} 6. dxc5 {[%clk 0:02:46.3]} 6... Bxc5
{[%clk 0:02:58]} 7. Qxd8+ {[%clk 0:02:43.9]} 7... Kxd8 {[%clk 0:02:58.9]} 8. a3
{[%clk 0:02:42.8]} 8... a6 {[%clk 0:02:58]} 9. b4 {[%clk 0:02:43.1]} 9... Ba7
{[%clk 0:02:57.8]} 10. Bb2 {[%clk 0:02:40.5]} 10... Ke7 {[%clk 0:02:57.4]} 11.
a4 {[%clk 0:02:30.2]} 11... Nc6 {[%clk 0:02:57.3]} 12. b5 {[%clk 0:02:25.6]}
12... Na5 {[%clk 0:02:53.9]} 13. Ba3+ {[%clk 0:02:13.1]} 13... Ke8 {[%clk
0:02:54]} 14. Nbd2 {[%clk 0:02:08.1]} 14... Nxc4 {[%clk 0:02:49.6]} 15. Nxc4
{[%clk 0:02:09]} 15... Ne4 {[%clk 0:02:49.8]} 16. Nfd2 {[%clk 0:01:44.1]} 16...
Nxd2 {[%clk 0:02:49.3]} 17. Kxd2 {[%clk 0:01:45]} 17... f6 {[%clk 0:02:23.6]}
18. Nd6+ {[%clk 0:01:34.6]} 18... Kd7 {[%clk 0:02:23.6]} 19. Rhd1 {[%clk
0:01:30.7]} 19... e5 {[%clk 0:02:24.1]} 20. Ke2 {[%clk 0:01:08.8]} 20... Ke6
{[%clk 0:02:22.7]} 21. Rac1 {[%clk 0:01:01.6]} 21... Rd8 {[%clk 0:02:19]} 22. g4
{[%clk 0:00:34.6]} 22... Bb6 {[%clk 0:02:10.5]} 23. Nf5 {[%clk 0:00:29.8]} 23...
Rxd1 {[%clk 0:02:06.6]} 24. Rxd1 {[%clk 0:00:29]} 24... g6 {[%clk 0:02:03.6]}
25. Rd6+ {[%clk 0:00:27.6]} 25... Kf7 {[%clk 0:02:03.9]} 26. Nh6+ {[%clk
0:00:14]} 26... Kg7 {[%clk 0:02:03.9]} 27. Rxb6 {[%clk 0:00:14.5]} 27... Kxh6
{[%clk 0:02:03.8]} 28. Bf8+ {[%clk 0:00:14.8]} 28... Kg5 {[%clk 0:02:02.5]} 29.
Be7 {[%clk 0:00:11.5]} 29... Bxg4+ {[%clk 0:01:55.6]} 30. f3 {[%clk 0:00:10.5]}
30... Bh3 {[%clk 0:01:47.7]} 31. Bxf6+ {[%clk 0:00:10.7]} 31... Kf5 {[%clk
0:01:44.4]} 32. e4+ {[%clk 0:00:09.6]} 32... Kf4 {[%clk 0:01:42.1]} 33. Bg7
{[%clk 0:00:09.4]} 33... Kg5 {[%clk 0:01:40.9]} 34. Bxe5 {[%clk 0:00:08.8]}
34... axb5 {[%clk 0:01:40.3]} 35. Rxb5 {[%clk 0:00:09.4]} 35... Bd7 {[%clk
0:01:06.9]} 36. Rc5 {[%clk 0:00:06.5]} 36... Rxa4 {[%clk 0:00:55.2]} 37. Bg7+
{[%clk 0:00:06.2]} 37... Kh4 {[%clk 0:00:55]} 38. Bf6+ {[%clk 0:00:04.2]} 38...
Kh3 {[%clk 0:00:54.8]} 39. Rc7 {[%clk 0:00:04.7]} 39... Bb5+ {[%clk 0:00:45.6]}
40. Ke3 {[%clk 0:00:05.3]} 40... Ra3+ {[%clk 0:00:45.4]} 41. Kf4 {[%clk
0:00:02.8]} 41... Kg2 {[%clk 0:00:45.5]} 42. Rxh7 {[%clk 0:00:02.6]} 42... Rxf3+
{[%clk 0:00:45.3]} 43. Ke5 {[%clk 0:00:03.2]} 43... Bc6 {[%clk 0:00:41.3]} 44.
Bg5 {[%clk 0:00:02.3]} 44... Rf8 {[%clk 0:00:37.1]} 45. Re7 {[%clk 0:00:01.9]}
45... Kxh2 {[%clk 0:00:34.9]} 46. Kd4 {[%clk 0:00:02.5]} 46... Kg3 {[%clk
0:00:33.2]} 47. e5 {[%clk 0:00:02.9]} 47... Kg4 {[%clk 0:00:33]} 48. Bf6 {[%clk
0:00:03.5]} 48... Kf5 {[%clk 0:00:31.6]} 49. Rg7 {[%clk 0:00:04.4]} 49... Ra8
{[%clk 0:00:26.5]} 50. Rf7 {[%clk 0:00:04.1]} 50... Ke6 {[%clk 0:00:25.5]} 51.
Re7+ {[%clk 0:00:04.2]} 51... Kf5 {[%clk 0:00:25.9]} 52. Rg7 {[%clk 0:00:04.5]}
52... Ra4+ {[%clk 0:00:25.4]} 53. Kc5 {[%clk 0:00:04.8]} 53... Re4 {[%clk
0:00:24.3]} 54. Kd6 {[%clk 0:00:03.7]} 54... Rd4+ {[%clk 0:00:23.3]} 55. Kc7
{[%clk 0:00:03.9]} 55... Re4 {[%clk 0:00:22]} 56. Rf7 {[%clk 0:00:03.8]} 56...
Ke6 {[%clk 0:00:21.6]} 57. Re7+ {[%clk 0:00:04.1]} 57... Kf5 {[%clk 0:00:21.8]}
58. Kd6 {[%clk 0:00:04.6]} 58... Rd4+ {[%clk 0:00:21.5]} 59. Kc5 {[%clk
0:00:04.9]} 59... Re4 {[%clk 0:00:22.3]} 60. Kd6 {[%clk 0:00:04.7]} 60... Rd4+
{[%clk 0:00:22.6]} 61. Kc5 {[%clk 0:00:05.3]} 61... Re4 {[%clk 0:00:23.1]} 62.
Kd6 {[%clk 0:00:05.6]} 1/2-1/2